bitfinex/quotes_BTCUSD_20250928
["timestamp","ask_amount","ask_price","bid_price","bid_amount"]
[1759071607628,9.14359786,110160.0,110150.0,0.45178526]
[1759071607837,9.14359786,110160.0,110150.0,0.16542526]
[1759071608041,9.14359786,110160.0,110150.0,0.45178526]
[1759071608219,9.14359786,110160.0,110150.0,0.16542526]
[1759071608354,9.12935367,110160.0,110150.0,0.45178526]
[1759071609852,9.12935367,110160.0,110150.0,0.16542526]
[1759071610105,9.12935367,110160.0,110150.0,0.45178526]
[1759071611437,9.12935367,110160.0,110150.0,0.16542526]
[1759071611664,9.14359723,110160.0,110150.0,0.45178526]
[1759071611876,8.97903138,110160.0,110150.0,0.45178526]
[1759071612189,9.14346334,110160.0,110150.0,0.45178526]
[1759071616400,9.14346334,110160.0,110150.0,0.16542526]
[1759071616603,9.14346334,110160.0,110150.0,0.45174526]
[1759071617030,8.38621846,110160.0,110150.0,0.45174526]
[1759071617238,9.14346334,110160.0,110150.0,0.45174526]
[1759071618592,9.14346334,110160.0,110150.0,0.16542526]
[1759071618819,9.14346334,110160.0,110150.0,0.45170526]
[1759071622024,8.75059734,110160.0,110150.0,0.45170526]
[1759071622240,9.12921978,110160.0,110150.0,0.45170526]
[1759071625084,9.14346289,110160.0,110150.0,0.45170526]
[1759071628998,9.12921978,110160.0,110150.0,0.45170526]
[1759071629610,8.75059734,110160.0,110150.0,0.45170526]
[1759071630039,9.12921978,110160.0,110150.0,0.45170526]
[1759071631123,8.75059734,110160.0,110150.0,0.45170526]
[1759071631353,9.12921978,110160.0,110150.0,0.45170526]
[1759071631561,9.12721978,110160.0,110150.0,0.45170526]
[1759071631890,9.12721978,110160.0,110150.0,0.45370526]
[1759071632092,0.78721978,110160.0,110150.0,0.45370526]
[1759071632693,0.0299749,110160.0,110150.0,0.45370526]
[1759071632914,0.75724488,110160.0,110150.0,0.45370526]
[1759071633459,0.7714876,110160.0,110150.0,0.45370526]
[1759071634299,0.80879158,110160.0,110150.0,0.45370526]
[1759071634425,0.80879158,110160.0,110150.0,0.16742526]
[1759071634621,0.80898158,110160.0,110150.0,0.16742526]
[1759071634826,0.80898158,110160.0,110150.0,0.49591526]
[1759071635037,0.80879158,110160.0,110150.0,0.45379526]
[1759071635283,0.80879158,110160.0,110150.0,0.54839526]
[1759071636349,0.80898158,110160.0,110150.0,0.54839526]
[1759071637194,0.80879158,110160.0,110150.0,0.54839526]
[1759071639214,0.79454886,110160.0,110150.0,0.54839526]
[1759071642274,0.79444128,110160.0,110150.0,0.54839526]
[1759071643703,0.80868377,110160.0,110150.0,0.54839526]
[1759071647857,0.79444128,110160.0,110150.0,0.54839526]
[1759071648027,0.79444128,110160.0,110150.0,0.45371526]
[1759071648250,0.79463128,110160.0,110150.0,0.44846526]
[1759071648474,0.79463128,110160.0,110150.0,0.54306526]
[1759071649245,0.03749398,110160.0,110150.0,0.16234526]
[1759071649443,0.79463128,110160.0,110150.0,0.54306526]
[1759071650440,0.79463128,110160.0,110150.0,0.16234526]
[1759071650648,0.79463128,110160.0,110150.0,0.54306526]
[1759071650843,0.79463128,110160.0,110150.0,0.16234526]
[1759071651042,0.79463128,110160.0,110150.0,0.54306526]
[1759071651453,0.79463128,110160.0,110150.0,0.16234526]
[1759071651710,0.79463128,110160.0,110150.0,0.54302526]
[1759071652314,0.80887389,110160.0,110150.0,0.54302526]
[1759071659321,1.48994856,110160.0,110150.0,0.06273676]
[1759071659508,1.47570595,110160.0,110150.0,0.54298526]
[1759071659750,1.0971373,110160.0,110150.0,0.54298526]
[1759071660288,1.47570595,110160.0,110150.0,0.54298526]
[1759071660695,9.47570595,110160.0,110150.0,0.54298526]
[1759071660891,9.47570595,110160.0,110150.0,0.06273676]
[1759071661113,9.51330564,110160.0,110150.0,0.18557676]
[1759071661756,9.51330564,110160.0,110150.0,0.18457676]
[1759071662150,9.51530564,110160.0,110150.0,0.18457676]
[1759071662399,9.51530564,110160.0,110150.0,0.34677676]
[1759071662808,9.5295491,110160.0,110150.0,0.34677676]
[1759071663394,9.5295491,110160.0,110150.0,0.44638526]
[1759071663954,9.5295491,110160.0,110150.0,0.34677676]
[1759071664179,9.5295491,110160.0,110150.0,0.44638526]
[1759071664363,9.5295491,110160.0,110150.0,0.34677676]
[1759071664567,9.5295491,110160.0,110150.0,0.44638526]
[1759071665623,8.39384315,110160.0,110150.0,0.44638526]
[1759071665848,9.5295491,110160.0,110150.0,0.44638526]
[1759071668031,9.15098045,110160.0,110150.0,0.44638526]
[1759071669263,9.13673699,110160.0,110150.0,0.44638526]
[1759071672041,9.13673699,110160.0,110150.0,0.45145526]
[1759071673532,9.13673699,110160.0,110150.0,0.44638526]
[1759071676304,9.15098013,110160.0,110150.0,0.44638526]
[1759071678268,9.15098013,110160.0,110150.0,0.44848526]
[1759071679353,8.39384283,110160.0,110150.0,0.44848526]
[1759071679542,9.13673699,110160.0,110150.0,0.44848526]
[1759071682304,9.15098013,110160.0,110150.0,0.44848526]
[1759071682517,8.42116284,110160.0,110150.0,0.44848526]
[1759071682704,9.17830014,110160.0,110150.0,0.45146526]
[1759071682836,9.164057,110160.0,110150.0,0.45146526]
[1759071685715,9.17830025,110160.0,110150.0,0.45146526]
[1759071690748,9.164057,110160.0,110150.0,0.45146526]
[1759071692001,9.164057,110160.0,110150.0,0.44848526]
[1759071692968,8.98056673,110160.0,110150.0,0.44848526]
[1759071693587,8.83830022,110160.0,110150.0,0.44848526]
[1759071694062,8.824057,110160.0,110150.0,0.44848526]
[1759071696183,0.4069197,110160.0,110150.0,0.45146526]
[1759071696397,1.164057,110160.0,110150.0,0.45146526]
[1759071697042,1.17829983,110160.0,110150.0,0.45146526]
[1759071698290,1.17820905,110160.0,110150.0,0.45146526]
[1759071698478,1.16396622,110160.0,110150.0,0.45146526]
[1759071699536,1.16396622,110160.0,110150.0,0.16542526]
[1759071699756,1.16396622,110160.0,110150.0,0.54594526]
[1759071700428,0.40682892,110160.0,110150.0,0.54594526]
[1759071700664,0.82396622,110160.0,110150.0,0.54594526]
[1759071702303,0.4453737,110160.0,110150.0,0.54594526]
[1759071702520,0.4433737,110160.0,110150.0,0.54594526]
[1759071702892,0.45761611,110160.0,110150.0,0.54994526]
[1759071703696,0.45761611,110160.0,110150.0,0.55294526]
[1759071707035,0.45761611,110160.0,110150.0,0.17242526]
[1759071707231,0.45761611,110160.0,110150.0,0.55310526]
[1759071707594,0.4433737,110160.0,110150.0,0.55310526]
[1759071709245,0.03750891,110160.0,110150.0,0.73467584]
[1759071709611,0.60664861,110170.0,110160.0,0.31856936]
[1759071709829,0.55555944,110170.0,110160.0,0.32053936]
[1759071710033,0.55555944,110170.0,110160.0,0.34638936]
[1759071710450,0.93410422,110170.0,110160.0,0.16483526]
[1759071710686,0.93410422,110170.0,110160.0,0.56371067]
[1759071711004,0.93410422,110170.0,110160.0,0.54755526]
[1759071711208,0.97098553,110170.0,110160.0,0.54755526]
[1759071712261,0.97098553,110170.0,110160.0,0.16683526]
[1759071712480,0.9852264,110170.0,110160.0,0.56571067]
[1759071712698,0.9852264,110170.0,110160.0,0.45287526]
[1759071712909,0.9852264,110170.0,110160.0,0.54747526]
[1759071713476,0.60668162,110170.0,110160.0,0.72902936]
[1759071713684,0.60668162,110170.0,110160.0,0.75634145]
[1759071715342,0.60668162,110170.0,110160.0,0.37570145]
[1759071715545,0.60668162,110170.0,110160.0,1.13474145]
[1759071716173,0.9852264,110170.0,110160.0,0.66722735]
[1759071716363,0.9852264,110170.0,110160.0,0.95318735]
[1759071716530,0.9852264,110170.0,110160.0,0.85854735]
[1759071716731,0.9852264,110170.0,110160.0,0.95314735]
[1759071716937,0.9852264,110170.0,110160.0,0.19414735]
[1759071717146,0.9852264,110170.0,110160.0,0.57462735]
[1759071717821,0.97098553,110170.0,110160.0,0.57462735]
[1759071718715,0.59244075,110170.0,110160.0,0.57462735]
[1759071718913,0.97098553,110170.0,110160.0,0.57462735]
[1759071720602,0.30029008,110170.0,110160.0,0.57462735]
[1759071720810,0.68462876,110180.0,110160.0,0.57462735]
[1759071721013,0.37854478,110180.0,110170.0,0.46085226]
[1759071721218,0.18817354,110190.0,110180.0,0.4396085]
[1759071721416,8.18821987,110190.0,110180.0,0.7254885]
[1759071721643,8.20245993,110190.0,110180.0,0.7497385]
[1759071722069,8.22977203,110190.0,110180.0,0.75819145]
[1759071722485,8.60831681,110190.0,110180.0,0.75819145]
[1759071723358,8.60831681,110190.0,110180.0,0.79884821]
[1759071723359,8.07934053,110190.0,110180.0,0.79884821]
[1759071723566,0.43057321,110190.0,110180.0,0.79884821]
[1759071723995,0.05202843,110190.0,110180.0,0.54312011]
[1759071724213,0.05202843,110190.0,110180.0,1.30208011]
[1759071724441,0.43057321,110190.0,110180.0,0.89344821]
[1759071724651,0.43057321,110190.0,110180.0,0.50987821]
[1759071724858,0.43257321,110190.0,110180.0,0.88819821]
[1759071725066,0.43257321,110190.0,110180.0,0.53502411]
[1759071725410,0.43257321,110190.0,110180.0,0.91550411]
[1759071725853,0.05402843,110190.0,110180.0,0.92375411]
[1759071726027,0.05202843,110190.0,110180.0,0.82606411]
[1759071726239,0.05202843,110190.0,110180.0,0.54018411]
[1759071726440,0.05202843,110190.0,110180.0,0.92090411]
[1759071726721,0.05202843,110190.0,110180.0,0.82729561]
[1759071726877,0.05202843,110190.0,110180.0,0.92490411]
[1759071727070,0.05202843,110190.0,110180.0,0.54418411]
[1759071727280,0.05202843,110190.0,110180.0,0.82513561]
[1759071727524,0.05202843,110190.0,110180.0,0.92490411]
[1759071727664,0.41633315,110190.0,110180.0,0.92490411]
[1759071728067,0.03778837,110190.0,110180.0,0.92490411]
[1759071728271,0.03778837,110190.0,110180.0,0.58799411]
[1759071728986,0.41633315,110190.0,110180.0,0.58799411]
[1759071730548,0.41633315,110190.0,110180.0,0.49038561]
[1759071730799,0.41633315,110190.0,110180.0,0.58799411]
[1759071730936,0.03778837,110190.0,110180.0,0.58799411]
[1759071731174,0.41633315,110190.0,110180.0,0.49038561]
[1759071731349,0.41633315,110190.0,110180.0,0.58799411]
[1759071731799,0.41633315,110190.0,110180.0,0.49038561]
[1759071732029,0.41633315,110190.0,110180.0,0.58799411]
[1759071732150,0.43057185,110190.0,110180.0,0.49038561]
[1759071733363,8.43057185,110190.0,110180.0,0.20202411]
[1759071733569,8.43057185,110190.0,110180.0,0.46087821]
[1759071733740,8.80911663,110190.0,110180.0,0.17471821]
[1759071733937,8.8978281,110190.0,110180.0,0.17471821]
[1759071734143,8.92514191,110190.0,110180.0,0.36903821]
[1759071734343,8.92514191,110190.0,110180.0,0.46095821]
[1759071734636,8.83643044,110190.0,110180.0,0.46095821]
[1759071734902,8.83643044,110190.0,110180.0,0.45795821]
[1759071735928,9.17643044,110190.0,110180.0,0.45395821]
[1759071736368,9.17743044,110190.0,110180.0,0.45395821]
[1759071736748,9.16319174,110190.0,110180.0,0.45395821]
[1759071738516,9.81195266,110190.0,110180.0,0.07010971]
[1759071738768,9.81195266,110190.0,110180.0,0.53270295]
[1759071739680,9.81095266,110190.0,110180.0,0.53270295]
[1759071739897,9.81495266,110190.0,110180.0,0.53270295]
[1759071740120,10.11539467,110190.0,110180.0,0.53270295]
[1759071740547,10.11139467,110190.0,110180.0,0.53270295]
[1759071741025,10.11839467,110190.0,110180.0,0.53270295]
[1759071741666,10.11939467,110190.0,110180.0,0.53270295]
[1759071742043,10.14954657,110190.0,110180.0,0.53270295]
[1759071742704,9.86334657,110190.0,110180.0,0.53270295]
[1759071742883,9.98863849,110190.0,110180.0,0.53270295]
[1759071743436,9.98859849,110190.0,110180.0,0.53270295]
[1759071743597,9.70231849,110190.0,110180.0,0.53270295]
[1759071743805,9.98859849,110190.0,110180.0,0.53270295]
[1759071744056,9.33983757,110190.0,110180.0,0.53270295]
[1759071744222,8.26631611,110190.0,110180.0,0.53270295]
[1759071744434,9.02340567,110190.0,110180.0,0.57521971]
[1759071745292,8.82166711,110190.0,110180.0,0.57521971]
[1759071745857,8.8581554,110190.0,110180.0,0.57521971]
[1759071746462,8.8581554,110190.0,110180.0,0.57211971]
[1759071747793,8.84391339,110190.0,110180.0,0.57211971]
[1759071748431,8.50391339,110190.0,110180.0,0.67282821]
[1759071748637,8.47659958,110190.0,110180.0,0.67282821]
[1759071748867,8.81659958,110190.0,110180.0,0.67282821]
[1759071749277,8.80959958,110190.0,110180.0,0.67282821]
[1759071749686,8.81159958,110190.0,110180.0,0.67282821]
[1759071749890,8.81059958,110190.0,110180.0,0.67282821]
[1759071751047,8.8248401,110190.0,110180.0,0.67282821]
[1759071751475,8.8258401,110190.0,110180.0,0.67282821]
[1759071751807,8.63038796,110190.0,110180.0,0.67282821]
[1759071755253,8.43320818,110190.0,110180.0,0.67282821]
[1759071755986,8.43320818,110190.0,110180.0,0.95962821]
[1759071757714,8.41896766,110190.0,110180.0,0.95962821]
[1759071757933,8.41896766,110190.0,110180.0,0.95946821]
[1759071758551,8.41896766,110190.0,110180.0,0.95435821]
[1759071760112,8.41896766,110190.0,110180.0,0.95451821]
[1759071760682,8.41896766,110190.0,110180.0,0.66771821]
[1759071760883,8.43320784,110190.0,110180.0,0.95447821]
[1759071761243,8.43320784,110190.0,110180.0,0.95448116]
[1759071761698,8.25679579,110190.0,110180.0,0.95448116]
[1759071763197,7.49970623,110190.0,110180.0,0.95448116]
[1759071763427,8.25679579,110190.0,110180.0,0.95448116]
[1759071764258,8.25663811,110190.0,110180.0,0.95448116]
[1759071764930,8.25663811,110190.0,110180.0,0.95649116]
[1759071765136,7.87817217,110190.0,110180.0,0.95959116]
[1759071767652,7.86393199,110190.0,110180.0,0.95959116]
[1759071768860,8.24239793,110190.0,110180.0,0.95959116]
[1759071769978,7.48546605,110190.0,110180.0,0.95959116]
[1759071770151,7.86393199,110190.0,110180.0,0.95959116]
[1759071770947,7.87817216,110190.0,110180.0,0.95113526]
[1759071771175,8.2566381,110190.0,110180.0,0.95113526]
[1759071771751,7.87817216,110190.0,110180.0,0.95113526]
[1759071771967,7.87617216,110190.0,110180.0,0.95113526]
[1759071772294,7.87517216,110190.0,110180.0,0.95213526]
[1759071772739,8.2536381,110190.0,110180.0,0.95181526]
[1759071774349,8.2536381,110190.0,110180.0,0.66537526]
[1759071774529,8.2536381,110190.0,110180.0,0.95173526]
[1759071775882,8.2536381,110190.0,110180.0,0.66537526]
[1759071776099,8.2536381,110190.0,110180.0,0.95173526]
[1759071777752,8.23939793,110190.0,110180.0,0.66537526]
[1759071778071,8.23939793,110190.0,110180.0,0.95169526]
[1759071778217,8.23939793,110190.0,110180.0,0.66537526]
[1759071778422,8.23939793,110190.0,110180.0,0.95165526]
[1759071781001,8.2536381,110190.0,110180.0,0.95165526]
[1759071781608,8.2536381,110190.0,110180.0,0.66537526]
[1759071781774,8.2536381,110190.0,110180.0,0.95157526]
[1759071783387,8.2536381,110190.0,110180.0,0.95153526]
[1759071787192,7.87517216,110190.0,110180.0,0.95153526]
[1759071787768,7.86093199,110190.0,110180.0,0.95153526]
[1759071788066,7.62093199,110190.0,110180.0,0.95153526]
[1759071788486,7.24246605,110190.0,110180.0,0.95153526]
[1759071788691,7.62093199,110190.0,110180.0,0.95153526]
[1759071791017,7.63517219,110190.0,110180.0,0.95153526]
[1759071792667,7.63517219,110190.0,110180.0,0.66537526]
[1759071792866,7.63517219,110190.0,110180.0,0.95133526]
[1759071793052,7.63517219,110190.0,110180.0,0.66537526]
[1759071793260,7.63517219,110190.0,110180.0,0.95133526]
[1759071795227,7.63517219,110190.0,110180.0,0.66537526]
[1759071795433,7.63517219,110190.0,110180.0,0.95133526]
[1759071795771,6.91670625,110190.0,110180.0,0.95133526]
[1759071796202,7.63517219,110190.0,110180.0,0.95133526]
[1759071796418,7.25670625,110190.0,110180.0,0.95133526]
[1759071797670,7.24246605,110190.0,110180.0,0.95133526]
[1759071798079,7.62093199,110190.0,110180.0,0.95133526]
[1759071801216,7.62093199,110190.0,110180.0,1.04593526]
[1759071802285,7.63517079,110190.0,110180.0,1.04593526]
[1759071804308,7.63517079,110190.0,110180.0,0.66537526]
[1759071804497,7.63517079,110190.0,110180.0,1.04589526]
[1759071805344,7.25670485,110190.0,110180.0,1.04589526]
[1759071805748,7.63517079,110190.0,110180.0,1.04589526]
[1759071807402,7.25670485,110190.0,110180.0,1.04589526]
[1759071807649,7.63517079,110190.0,110180.0,0.56265676]
[1759071807864,7.63517079,110190.0,110180.0,1.04078526]
[1759071808072,7.66248211,110190.0,110180.0,0.66026526]
[1759071808492,8.12965952,110190.0,110180.0,0.6228585]
[1759071808705,8.02670925,110190.0,110180.0,0.84857676]
[1759071808916,7.26977737,110190.0,110180.0,0.94618526]
[1759071809100,8.02670925,110190.0,110180.0,0.94618526]
[1759071811059,8.02670925,110190.0,110180.0,0.84857676]
[1759071811238,8.02670925,110190.0,110180.0,0.94618526]
[1759071811709,8.04094988,110190.0,110180.0,0.94618526]
[1759071815094,7.8409196,110190.0,110180.0,0.94618526]
[1759071815305,8.40089021,110190.0,110180.0,0.56265676]
[1759071815503,8.40089021,110190.0,110180.0,0.84857676]
[1759071816218,8.40089021,110190.0,110180.0,0.84757676]
[1759071816437,8.40289021,110190.0,110180.0,0.84757676]
[1759071816852,8.68681021,110190.0,110180.0,0.81017]
[1759071817621,8.67256958,110190.0,110180.0,0.81017]
[1759071817936,8.67356958,110190.0,110180.0,0.81017]
[1759071818107,8.67356958,110190.0,110180.0,0.52425]
[1759071818308,8.38964958,110190.0,110180.0,0.52425]
[1759071818588,8.67556958,110190.0,110180.0,0.52425]
[1759071819334,8.38964958,110190.0,110180.0,0.52425]
[1759071819543,8.67556958,110190.0,110180.0,0.52425]
[1759071819956,8.47836105,110190.0,110180.0,0.52425]
[1759071820176,8.76428105,110190.0,110180.0,0.52425]
[1759071820583,8.77852305,110190.0,110180.0,0.52425]
[1759071822356,8.40389158,110190.0,110180.0,0.52425]
[1759071822751,8.68981158,110190.0,110180.0,0.52425]
[1759071823506,8.31134564,110190.0,110180.0,0.52425]
[1759071823960,8.02542564,110190.0,110180.0,0.52425]
[1759071824166,8.31134564,110190.0,110180.0,0.52425]
[1759071824871,8.40005711,110190.0,110180.0,0.52425]
[1759071825624,8.11413711,110190.0,110180.0,0.52425]
[1759071825836,8.40005711,110190.0,110180.0,0.52425]
[1759071826248,8.40026461,110190.0,110180.0,0.52425]
[1759071826800,8.7788343,110190.0,110180.0,0.52425]
[1759071827863,8.11434461,110190.0,110180.0,0.52425]
[1759071828077,8.31155314,110190.0,110180.0,0.52425]
[1759071828280,8.02563314,110190.0,110180.0,0.52425]
[1759071828486,8.31155314,110190.0,110180.0,0.56685676]
[1759071831300,7.84412847,110190.0,110180.0,0.56685676]
[1759071831520,8.11580647,110190.0,110180.0,0.56685676]
[1759071831708,8.29731114,110190.0,110180.0,0.56685676]
[1759071832138,7.37363075,110190.0,110180.0,0.56685676]
[1759071832314,7.66334546,110190.0,110180.0,0.56685676]
[1759071832461,7.94926546,110190.0,110180.0,0.56685676]
[1759071833562,7.66334546,110190.0,110180.0,0.66446526]
[1759071833778,6.94477577,110190.0,110180.0,0.66446526]
[1759071834005,7.28477577,110190.0,110180.0,0.66446526]
[1759071834416,7.29901624,110190.0,110180.0,0.66446526]
[1759071834831,7.29701624,110190.0,110180.0,0.66446526]
[1759071835030,7.29701624,110190.0,110180.0,0.66546526]
[1759071835263,7.29601624,110190.0,110180.0,0.66546526]
[1759071836687,7.29601624,110190.0,110180.0,0.95138526]
[1759071837927,7.28177577,110190.0,110180.0,0.95138526]
[1759071838750,7.28177577,110190.0,110180.0,0.95134526]
[1759071839175,7.28177577,110190.0,110180.0,0.66546526]
[1759071839374,7.28177577,110190.0,110180.0,0.95134526]
[1759071840226,6.90320608,110190.0,110180.0,0.95134526]
[1759071840370,7.28177577,110190.0,110180.0,0.95134526]
[1759071840590,6.90320608,110190.0,110180.0,0.95134526]
[1759071840787,7.29601592,110190.0,110180.0,0.95134526]
[1759071841314,7.29601592,110190.0,110180.0,0.66546526]
[1759071841527,7.29601592,110190.0,110180.0,0.95134526]
[1759071842596,7.29601592,110190.0,110180.0,0.95130526]
[1759071845792,6.91744623,110190.0,110180.0,0.95130526]
[1759071846002,7.29601592,110190.0,110180.0,0.95130526]
[1759071846431,7.29601592,110190.0,110180.0,0.95126526]
[1759071847048,6.91744623,110190.0,110180.0,0.95126526]
[1759071847260,7.29601592,110190.0,110180.0,0.95126526]
[1759071848038,7.28177577,110190.0,110180.0,0.95126526]
[1759071848449,7.10259028,110190.0,110180.0,0.95126526]
[1759071848659,0.37648829,110190.0,110180.0,0.95126526]
[1759071852917,0.9208178,110200.0,110190.0,0.0976085]
[1759071853156,8.92128116,110200.0,110190.0,0.11888896]
[1759071853373,8.24304435,110200.0,110190.0,0.14480896]
[1759071853508,8.37856969,110200.0,110190.0,0.14480896]
[1759071853740,8.39280812,110200.0,110190.0,0.14480896]
[1759071854165,8.39480812,110200.0,110190.0,0.14480896]
[1759071854575,8.39480812,110200.0,110190.0,0.43060896]
[1759071854782,8.73480812,110200.0,110190.0,0.4124585]
[1759071855000,8.73580812,110200.0,110190.0,0.4124585]
[1759071855779,8.73580812,110200.0,110190.0,0.1266585]
[1759071855994,8.73580812,110200.0,110190.0,0.43060896]
[1759071856203,8.77224978,110200.0,110190.0,0.4124585]
[1759071858238,8.77224978,110200.0,110190.0,0.1266585]
[1759071858386,8.77224978,110200.0,110190.0,0.43060896]
[1759071858591,8.77224978,110200.0,110190.0,0.4124585]
[1759071860519,8.77224978,110200.0,110190.0,0.1266585]
[1759071860725,8.77224978,110200.0,110190.0,0.4092885]
[1759071861080,8.75801135,110200.0,110190.0,0.1235285]
[1759071861292,8.75801135,110200.0,110190.0,0.4071585]
[1759071863320,8.75801135,110200.0,110190.0,0.1213985]
[1759071863555,8.75801135,110200.0,110190.0,0.4071585]
[1759071864107,8.77225031,110200.0,110190.0,0.4071585]
[1759071865179,8.39368062,110200.0,110190.0,0.44663526]
[1759071865384,8.39368062,110200.0,110190.0,0.44976526]
[1759071865598,8.77225031,110200.0,110190.0,0.44976526]
[1759071866998,8.75801135,110200.0,110190.0,0.44976526]
[1759071867208,8.75801135,110200.0,110190.0,0.16400526]
[1759071867404,8.75801135,110200.0,110190.0,0.44972526]
[1759071868226,8.75801135,110200.0,110190.0,0.16400526]
[1759071868421,8.75801135,110200.0,110190.0,0.44972526]
[1759071870151,8.75801135,110200.0,110190.0,0.54432526]
[1759071870308,8.77224999,110200.0,110190.0,0.54432526]
[1759071870813,8.3936803,110200.0,110190.0,0.54432526]
[1759071871039,8.77224999,110200.0,110190.0,0.54432526]
[1759071872013,8.77224999,110200.0,110190.0,0.16400526]
[1759071872224,8.77224999,110200.0,110190.0,0.54432526]
[1759071872628,8.77224999,110200.0,110190.0,0.16087526]
[1759071872827,8.77224999,110200.0,110190.0,0.54119526]
[1759071873228,8.17691051,110200.0,110190.0,0.54119526]
[1759071873443,8.77224999,110200.0,110190.0,0.54119526]
[1759071877094,8.77224999,110200.0,110190.0,0.54432526]
[1759071880356,8.77224999,110200.0,110190.0,0.54119526]
[1759071881040,8.77224999,110200.0,110190.0,0.54432526]
[1759071881448,8.3936803,110200.0,110190.0,0.54432526]
[1759071881639,8.77224999,110200.0,110190.0,0.54432526]
[1759071883139,8.77224999,110200.0,110190.0,0.54119526]
[1759071884686,8.77224999,110200.0,110190.0,0.54432526]
[1759071886305,9.1503199,110200.0,110190.0,0.54432526]
[1759071890439,9.1503199,110200.0,110190.0,0.54424526]
[1759071900025,9.5286397,110200.0,110190.0,0.15880526]
[1759071900238,9.5286397,110200.0,110190.0,0.44440526]
[1759071900470,9.1503199,110200.0,110190.0,0.44440526]
[1759071900887,9.1503199,110200.0,110190.0,0.44642526]
[1759071901405,9.1503199,110200.0,110190.0,0.44963526]
[1759071901618,9.13608126,110200.0,110190.0,0.44963526]
[1759071902071,8.37944166,110200.0,110190.0,0.44963526]
[1759071902481,8.41776146,110200.0,110190.0,0.44963526]
[1759071902688,8.75776146,110200.0,110190.0,0.44963526]
[1759071903531,0.37944166,110200.0,110190.0,0.44963526]
[1759071903755,0.3783198,110200.0,110190.0,0.44963526]
[1759071904377,0.40953322,110200.0,110190.0,0.44963526]
[1759071904713,0.04545141,110200.0,110190.0,0.44963526]
[1759071904921,0.42377121,110200.0,110190.0,0.44963526]
[1759071905674,0.04545141,110200.0,110190.0,0.16403526]
[1759071905901,0.42377121,110200.0,110190.0,0.54419526]
[1759071906118,0.42377121,110200.0,110190.0,0.44658676]
[1759071906328,0.42377121,110200.0,110190.0,0.54419526]
[1759071906985,0.42377121,110200.0,110190.0,0.44658676]
[1759071907422,0.42377121,110200.0,110190.0,0.54419526]
[1759071907614,0.40953322,110200.0,110190.0,0.54419526]
[1759071908039,0.40953322,110200.0,110190.0,0.44658676]
[1759071908250,0.03121342,110200.0,110190.0,0.54419526]
[1759071908464,0.3783198,110200.0,110190.0,0.54419526]
[1759071908671,0.3783198,110200.0,110190.0,0.44658676]
[1759071908939,0.3783198,110200.0,110190.0,0.54419526]
[1759071909353,0.94170419,110210.0,110190.0,0.92251506]
[1759071909558,8.0,110200.0,110190.0,0.82490656]
[1759071909770,8.0,110200.0,110190.0,0.92251506]
[1759071910135,8.0,110200.0,110190.0,0.82490656]
[1759071910498,8.0,110200.0,110190.0,0.92251506]
[1759071910700,8.0,110200.0,110190.0,0.44658676]
[1759071910901,8.0,110200.0,110190.0,0.92251506]
[1759071911103,8.03074269,110200.0,110190.0,0.92251506]
[1759071911376,0.03074269,110200.0,110190.0,0.92251506]
[1759071911718,0.94662049,110210.0,110190.0,0.92251506]
[1759071911914,8.0,110200.0,110190.0,0.82490656]
[1759071912335,8.0,110200.0,110190.0,0.92251506]
[1759071913127,8.0,110200.0,110190.0,0.82490656]
[1759071913307,8.002,110200.0,110190.0,0.82490656]
[1759071913540,0.002,110200.0,110190.0,0.92251506]
[1759071914999,0.002,110200.0,110190.0,0.82490656]
[1759071915198,0.002,110200.0,110190.0,0.92251506]
[1759071915793,0.03369035,110200.0,110190.0,0.82490656]
[1759071915972,0.03369035,110200.0,110190.0,0.92251506]
[1759071916667,0.03369035,110200.0,110190.0,0.82690656]
[1759071916873,0.03169035,110200.0,110190.0,0.82690656]
[1759071917081,0.00056642,110200.0,110190.0,0.83090656]
[1759071917285,0.00056642,110200.0,110190.0,0.92851506]
[1759071917486,0.00056642,110200.0,110190.0,0.54835506]
[1759071917693,0.00056642,110200.0,110190.0,0.45074656]
[1759071917900,0.00056642,110200.0,110190.0,0.92522506]
[1759071918097,0.00056642,110200.0,110190.0,0.16682526]
[1759071918310,0.00056642,110200.0,110190.0,0.92522506]
[1759071918724,0.03202457,110200.0,110190.0,0.92522506]
[1759071919130,0.03202457,110200.0,110190.0,0.92833506]
[1759071919777,0.03202457,110200.0,110190.0,0.92829506]
[1759071919948,0.03202457,110200.0,110190.0,0.54825506]
[1759071920153,0.03202457,110200.0,110190.0,0.92829506]
[1759071922098,0.03202457,110200.0,110190.0,0.54997526]
[1759071922279,0.04626226,110200.0,110190.0,0.92829506]
[1759071923135,0.04569584,110200.0,110190.0,0.92829506]
[1759071923479,0.04569584,110200.0,110190.0,0.92518506]
[1759071923761,0.04569584,110200.0,110190.0,0.16682526]
[1759071923963,0.04569584,110200.0,110190.0,0.54480526]
[1759071924142,0.04569584,110200.0,110190.0,0.54255629]
[1759071924340,0.04569584,110200.0,110190.0,0.92255629]
[1759071924545,0.04569584,110200.0,110190.0,0.44967649]
[1759071924764,0.04569584,110200.0,110190.0,0.54423649]
[1759071924975,0.04569584,110200.0,110190.0,0.92761629]
[1759071926515,0.04569584,110200.0,110190.0,0.54929649]
[1759071926751,0.04569584,110200.0,110190.0,0.92761629]
[1759071927405,8.42401564,110200.0,110190.0,0.54423649]
[1759071927622,8.80233544,110200.0,110190.0,0.16423649]
[1759071927845,8.80233544,110200.0,110190.0,0.44967649]
[1759071930271,8.80233544,110200.0,110190.0,0.16423649]
[1759071930484,8.80233544,110200.0,110190.0,0.44967649]
[1759071931342,8.80233544,110200.0,110190.0,0.16423649]
[1759071931552,8.04569584,110200.0,110190.0,0.44967649]
[1759071931736,8.80233544,110200.0,110190.0,0.44967649]
[1759071932099,8.57671963,110200.0,110190.0,0.44967649]
[1759071932315,8.77087807,110200.0,110190.0,0.44967649]
[1759071932524,8.80874806,110200.0,110190.0,0.16423649]
[1759071932937,8.79450959,110200.0,110190.0,0.16423649]
[1759071933120,9.20013894,110200.0,110190.0,0.44963649]
[1759071933323,9.20013894,110200.0,110190.0,0.35202799]
[1759071933541,9.54013894,110200.0,110190.0,0.16423649]
[1759071933762,9.72162714,110200.0,110190.0,0.16423649]
[1759071933976,9.72162714,110200.0,110190.0,0.35202799]
[1759071934386,9.72162714,110200.0,110190.0,0.06662799]
[1759071934586,9.72162714,110200.0,110190.0,0.44563649]
[1759071934787,9.72162714,110200.0,110190.0,0.16023649]
[1759071935039,9.72162714,110200.0,110190.0,0.34602799]
[1759071935485,9.73586671,110200.0,110190.0,0.34702799]
[1759071935657,9.76794472,110200.0,110190.0,0.34702799]
[1759071936056,9.73586671,110200.0,110190.0,0.34702799]
[1759071936598,9.73586671,110200.0,110190.0,0.06362799]
[1759071936803,9.73586671,110200.0,110190.0,0.02622123]
[1759071936995,10.85658654,110200.0,110190.0,0.01682123]
[1759071937199,9.72162714,110200.0,110190.0,0.01682123]
[1759071937604,10.09573861,110200.0,110190.0,0.01482123]
[1759071937911,10.09873861,110200.0,110190.0,0.01482123]
[1759071938613,9.89409593,110200.0,110190.0,0.01482123]
[1759071939057,9.89409593,110200.0,110190.0,0.01382123]
[1759071939283,9.89109593,110200.0,110190.0,0.01382123]